Cogmind - Beta 16 --- EXPLORER MODE // 2025.12.08 @ 10:40:59 Player: K.K.Y. Result: Destroyed by Light Ion Engine chain reaction Performance ------------- Evolutions (0) 0 Regions Visited (1) 200 Robots Destroyed (13) 65 Value Destroyed (266) 266 Prototype IDs (0) 0 Alien Tech Used (0) 0 Bonus (0) 0 TOTAL SCORE: 531 Bonus ------- None Cogmind --------- Core Integrity 0/250 Matter 290/300 Energy 97/100 System Corruption 0% Temperature Cool (12) Movement Core (50) Location -10/Materials Parts ------- > --- POWER (1) -------- (None) > --- PROPULSION (2) --- (None) > --- UTILITY (3) ------ Small Storage Unit Weight Redist. System Targeting Computer > --- WEAPON (2) ------- Small Laser Small Laser > --- INVENTORY (8) ---- High-capacity Storage Unit High-capacity Storage Unit Improved Terrain Scanner Small Laser Beam Cannon Shotgun Mining Laser Peak State ------------ > --- POWER ------------ Light Ion Engine > --- PROPULSION ------- (None) > --- UTILITY ---------- Small Storage Unit Weight Redist. System Targeting Computer > --- WEAPON ----------- Small Laser Small Laser > --- INVENTORY -------- High-capacity Storage Unit High-capacity Storage Unit Improved Terrain Scanner Small Laser Beam Cannon Shotgun Mining Laser [Rating: 8] Favorites ----------- Power Light Ion Engine Engine Light Ion Engine Propulsion None Utility Targeting Computer Device Weight Redist. System Storage Small Storage Unit Processor Targeting Computer Weapon Small Laser Energy Gun Small Laser Ballistic Gun Light Assault Rifle Build | -11 -10 ------- Run | Yrd Mat Slots Evolved 1 | . 1 Power . | . . Propulsion . | . . Utility 1 | . 1 Weapon . | . . Parts Attached 8 | 3 5 Power 1 | 1 . Engine 1 | 1 . Core . | . . Reactor . | . . Propulsion . | . . Treads . | . . Leg . | . . Wheel . | . . Hover . | . . Flight . | . . Utility 3 | 1 2 Device 1 | . 1 Storage 1 | . 1 Processor 1 | 1 . Hackware . | . . Protection . | . . Artifact . | . . Weapon 4 | 1 3 Energy Gun 3 | . 3 Energy Cannon . | . . Ballistic Gun 1 | 1 . Ballistic Cannon . | . . Launcher . | . . Special Weapon . | . . Impact Weapon . | . . Slashing Weapon . | . . Piercing Weapon . | . . Special Melee Weapon . | . . Unidentified Prototypes . | . . Parts Lost 2 | . 2 Power 1 | . 1 Propulsion . | . . Utility . | . . Weapon 1 | . 1 Highest Loss Streak 1 | . 1 To Critical Strikes . | . . Average Backups 5 | 1 5 Power . | . . Propulsion . | . . Utility 2 | . 2 Weapon 2 | . 2 Tool/Special . | . . Unused Backups 7 | . 7 Power . | . . Propulsion . | . . Utility 3 | . 3 Weapon 4 | . 4 Tool/Special . | . . Average Slot Usage (%) 47 | . 47 Device 7 | . 7 Storage 5 | . 5 Processor 12 | . 12 Energy Gun 20 | . 20 Ballistic Gun 1 | . 1 Peak Build Rating 8 | 2 8 Average Rating 4 | 1 4 On Entrance 1 | . 2 Avg Prop Armor Cover (%) . | . . Naked Turns . | . . Heaviest Build 10 | 1 10 Greatest Support 9 | 3 9 Greatest Overweight (x) 1 | . 1 Average Overweight (x) . | . . Largest Inventory Capacity 8 | 5 8 Average Capacity 6 | 5 6 Most Carried 8 | 3 8 Average Carried 5 | 1 5 Final Capacity 8 | 5 8 Final Carried 7 | 3 7 Class Distribution -------------------- 100% | Hacker-Mutant Dominant Class ---------------- Hacker-Mutant | -10/Materials Resources | -11 -10 ----------- Run | Yrd Mat Matter Collected 313 | 242 71 Remotely . | . . Salvage Created 622 | 100 522 Parts 32 | 10 22 Haulers Intercepted 2 | . 2 Recyclers Shooed 2 | . 2 Parts Field Recycled . | . . Retrieved Matter . | . . Parts Self-Destructed . | . . Prevented . | . . Parts Restored . | . . Kills | -11 -10 ------- Run | Yrd Mat Combat Hostiles Destroyed 6 | . 6 Guns 6 | . 6 Classes Destroyed 4 | 2 2 Tunneler 2 | 2 . Hauler 2 | . 2 Recycler 3 | 1 2 Grunt 6 | . 6 Best Kill Streak 6 | 3 6 Combat Bots Only 4 | . 4 Max Kills in Single Turn 1 | 1 1 Gunslinging . | . . Exploded . | . . Melee . | . . Uniques/NPCs Destroyed . | . . Combat | -11 -10 -------- Run | Yrd Mat Hostile Shots Fired 57 | . 57 Missed 17 | . 17 Hits 40 | . 40 Projectile 40 | . 40 Critical Strikes 1 | . 1 Damage Taken 406 | . 406 Core 250 | . 250 Absorbed by Shields . | . . Ignored by Resistances 251 | . 251 Core Remaining (%) 100 | 100 . Volleys Fired 63 | 12 51 Largest 2 | 1 2 Hottest 80 | 20 80 Shots Fired 69 | 12 57 Gun 69 | 12 57 Cannon . | . . Launcher . | . . Special . | . . Kinetic 33 | 12 21 Thermal 36 | . 36 Explosive . | . . Electromagnetic . | . . Robot Hit Streak 15 | 6 15 Robot Miss Streak 1 | 1 1 Penetration Max . | . . Secondary Targets . | . . Shots Hit Robots 64 | 11 53 Core Hits 31 | 6 25 Critical Kills 1 | 1 . Critical Parts Destroyed . | . . Critical Strikes 1 | 1 . Destroy 1 | 1 . Melee Attacks . | . . Impact . | . . Slashing . | . . Piercing . | . . Sneak Attacks . | . . Combat Hostiles . | . . Follow-up Attacks . | . . Damage Inflicted 605 | 83 522 Guns 605 | 83 522 Cannons . | . . Explosions . | . . Melee . | . . Ramming . | . . Kinetic 230 | 83 147 Thermal 375 | . 375 Explosive . | . . Electromagnetic . | . . Impact . | . . Slashing . | . . Piercing . | . . Highest Corruption . | . . Average Corruption . | . . Corruption Purged . | . . Corruption Blocked . | . . Overload Shots . | . . Overflow Damage . | . . Projectiles . | . . Explosions . | . . Melee . | . . Knockbacks . | . . Impact . | . . Kinetic . | . . Secondary . | . . Self-Inflicted Damage . | . . Shots . | . . Rammed . | . . Targets Rammed . | . . Kicked . | . . Crushed . | . . Highest Temperature 22 | . 22 Average Temperature 4 | . 4 Received Heat Transfer 324 | . 324 Siege Activations . | . . Martial Activations . | . . Shielding Activations . | . . Robots Disrupted . | . . Combat Hostiles . | . . Robots Corrupted . | . . Combat Hostiles . | . . Parts Fried . | . . Impact Corruptions . | . . Robots Melted . | . . Combat Hostiles . | . . Parts Melted . | . . Heat Transferred 850 | . 850 Parts Sabotaged . | . . Parts Stolen . | . . Parts Stripped . | . . Power Chain Reactions . | . . Alert | -11 -10 ------- Run | Yrd Mat Maximum Alert Level . | . . Low Security (%) 100 | 100 100 Level 1 . | . . Level 2 . | . . Level 3 . | . . Level 4 . | . . Level 5 . | . . High Security . | . . Max Security . | . . Peak Influence 65 | 10 65 Initial . | . . Average 10 | 1 11 Influence Increases 194 | 15 179 Destroy 0b10 Robot/C 120 | . 120 Destroy 0b10 Robot/NC 35 | 15 20 Destroy Leader 24 | . 24 Partial Spotted 15 | . 15 Influence Decreases 194 | 15 179 Time Decay 184 | 15 169 Lost Part 10 | . 10 Squads Dispatched . | . . Investigation . | . . Extermination . | . . Reinforcement . | . . Assault . | . . Garrison . | . . Intercept . | . . Searches Triggered . | . . Construction Impeded . | . . Haulers Reinforced . | . . Active Scanning Responses . | . . Cargo Convoy Interrupts . | . . Stealth | -11 -10 --------- Run | Yrd Mat Distress Signals 2 | . 2 Communications Jammed . | . . Distress Signals . | . . Times Spotted 11 | . 11 Peak Tracking Total 4 | . 4 Tactical Retreats . | . . Traps | -11 -10 ------- Run | Yrd Mat Traps Triggered 4 | . 4 Indirectly . | . . Trap Hack Attempts . | . . Triggered . | . . Disarmed . | . . Reprogrammed . | . . Reused . | . . Traps Extracted . | . . Installed . | . . Triggered . | . . Machines | -11 -10 ---------- Run | Yrd Mat Machines Disabled . | . . Max in Single Turn . | . . Machines Repaired . | . . Machines Dismantled . | . . Machines Sabotaged . | . . Overloaded Fab Kills . | . . Hacking | -11 -10 --------- Run | Yrd Mat Machines Accessed . | . . Terminals . | . . Fabricators . | . . Repair Stations . | . . Recycling Units . | . . Scanalyzers . | . . Garrison Access . | . . Total Hacks . | . . Successful . | . . Failed . | . . Catastrophic . | . . Database Lockouts . | . . Manual . | . . Terminals . | . . Fabricators . | . . Repair Stations . | . . Recycling Units . | . . Scanalyzers . | . . Garrison Access . | . . Terminal Hacks . | . . Fabricator Hacks . | . . Repair Station Hacks . | . . Recycling Unit Hacks . | . . Scanalyzer . | . . Garrison Access Hacks . | . . Unauthorized Hacks . | . . Terminals . | . . Fabricators . | . . Repair Stations . | . . Recycling Units . | . . Scanalyzers . | . . Garrison Access . | . . Data Cores Recovered . | . . Used . | . . Hacking Detections . | . . Full Trace Events . | . . Feedback Events . | . . Feedback Blocked . | . . Robot Schematics Acquired . | . . Robots Built . | . . Authchips . | . . Time . | . . Total Robot Build Rating . | . . Part Schematics Acquired . | . . Parts Built . | . . Authchips . | . . Time . | . . Total Part Build Rating . | . . Part Studies Acquired . | . . Parts Repaired . | . . Time . | . . Parts Recycled . | . . Recycled Matter . | . . Retrieved Matter . | . . Retrieved Components . | . . Parts Scanalyzed . | . . Part Schematics Acquired . | . . Parts Damaged . | . . Bothacking | -11 -10 ------------ Run | Yrd Mat Used RIF Installer . | . . Robots Hacked . | . . Non-combat . | . . Combat . | . . Robot Hacks Applied . | . . Relay Couplers Released . | . . Fabnet Peak Effective % . | . . Robots Rewired . | . . Allies Hacked . | . . Hacks Repelled . | . . Allies | -11 -10 -------- Run | Yrd Mat Total Allies . | . . Largest Group . | . . Highest-Rated Group . | . . Highest-Rated Ally . | . . Total Orders . | . . Ally Attacks . | . . Total Damage . | . . Kills . | . . Allies Corrupted . | . . Allies Melted . | . . Intel | -11 -10 ------- Run | Yrd Mat Active Infowar (turns) . | . . Robot Analysis Total . | . . Derelict Logs Recovered . | . . Drone Launches . | . . Drone Recoveries . | . . Exploration | -11 -10 ------------- Run | Yrd Mat Turns Passed 704 | 65 639 Spaces Moved 711 | 70 641 Core 711 | 70 641 Treads . | . . Legs . | . . Wheels . | . . Hover . | . . Flight . | . . Fastest Speed 50 | 50 50 Average Speed 51 | 50 51 Slowest Speed 100 | 50 100 Overloaded Moves . | . . Propulsion Burnouts . | . . Robots Hopped . | . . Potential Cave-ins . | . . Cave-ins Triggered . | . . Exploration Rate (%) 41 | 4 78 Regions Visited 1 Branch Regions . Pre-discovered Areas . | . . Known Exits Taken 1 | 1 . Unknown Exits Taken . | . . Scrap Searched . | . . Spaces Dug . | . . Terrain Destroyed . | . . Melee . | . . Projectile . | . . AOE . | . . Terrain Rammed . | . . Walls Destroyed . | . . Machines Disabled . | . . Actions | -11 -10 --------- Run | Yrd Mat Total 990 | 90 900 Wait 193 | . 193 Move 710 | 69 641 Hop . | . . Pick Up 13 | 5 8 Fast Attach 1 | . 1 Attach 7 | 3 4 Detach 1 | 1 . Swap 1 | . 1 Drop 1 | . 1 Fire 63 | 12 51 Melee . | . . Ram . | . . Kick . | . . Crush . | . . Escape Stasis . | . . Rewire . | . . Trap . | . . Miscellaneous . | . . Route ------- -11/Scrapyard -10/Materials (discovered 4 exits: *Mat x2 / *Min / *Sub) History --------- Turn | Location | Event 6 | -11/Scrapyard | Identified exit to Materials 6 | -11/Scrapyard | Discovered exit to Materials (range 16) 66 | -11/Scrapyard | Entered Materials 66 | -10/Materials | Evolved 1 slot: Utility x1 127 | -10/Materials | Core integrity fell below 50% 205 | -10/Materials | Core integrity fell below 20% 226 | -10/Materials | Identified exit to Mines 226 | -10/Materials | Discovered exit to Mines (range 15) 331 | -10/Materials | Build established: Hacker-Mutant 346 | -10/Materials | Identified exit to Materials 346 | -10/Materials | Discovered exit to Materials (range 8) 536 | -10/Materials | Discovered exit to Materials (range 4) 642 | -10/Materials | Identified exit to Subcaves 642 | -10/Materials | Discovered exit to Subcaves (range 9) 705 | -10/Materials | Destroyed by Light Ion Engine chain reaction Last Messages --------------- 00405_ U-05 Engineer lays Concrete. 00409_ T-07 Excavator is excavating. 00409_ Acquired Sml. Storage Unit. 00412_ Acquired Beam Cannon. 00413_ T-07 Excavator is excavating. 00414_ U-05 Engineer lays Concrete. 00419_ K-01 Serf collects debris. 00424_ Acquired Sml. Laser. 00481_ Acquired Hcp. Storage Unit. 00482_ K-01 Serf collects debris. 00482_ Acquired 30 matter. 00536_ EXIT=FOUND: MATERIALS 00642_ EXIT=FOUND: SUBCAVES 00644_ U-05 Engineer builds a Wall. 00644_ T-07 Excavator is excavating. 00705_ Triggered EMP Trap. 00705_ A bubble of electromagnetic force engulfs the area. 00705_ Chain reaction triggered in Lgt. Ion Engine. Map ----- +----------------------------------------------------+ | | | | | | | | | | | | | | | | | | | | | | | | | ?????????????????????????????????????????????????? | | ?????????????????????????????????????????????????? | | ??????????????????????????##########?????????????? | | ??????????????????????????# #?????????????? | | ??????????????????????????# #?????????????? | | ?????????################## #?########????? | | ?????????# # + # """ #?# #????? | | ####?????# < # [ ###### """ #?# """ #????? | | #?????# # #????# """ #?# """ #????? | | #?????# + #????# """ #?# """ ####?? | | """#?????# # #????# """ #?# # #?? | | """#?????# # #????# #?# "T" # #?? | | """#?????# #################+##########+## #?? | | #?????# @ *!! #?? | | ########## !%! #?? | | ####### !!# """ ^ #?? | | #?????# =# " #?? | | ^ #?????#! !# #?? | | ^ ^ #?????##!!!!## #?? | | """ """ """ """ #??????####### #?? | | """ """ """ """ #????????????# ##+##+#### | | """ """ """ """ #?????????#### ## # | | #?????????# ## """ # | | #?????????#[ ! !!## """ # | | ################ #?????????#[[!!!!## """ # | | ####### #????????# #?????????######### # | | ??????# #?######## #?#######?????????# """ # | | ####### #?# """ # #?# #?????????# """ # | | # #?# "R" # #?# " #?????????# """ # | | # #?# " " # ### T #?????????# # | | "" # #?# #!! # " #?????????########## | | "T # #?#% #%= # #??????????????????? | | "" # #?# ! +=* + #??????????????????? | | # ########## # |#??????????????????? | | ##+#+####/## ## ##########???????????????? | | ## ^ ????????????? | | + > ^ ????????????? | | ## ^ ????????????? | +----------------------------------------------------+ Best States ------------- Heat Dissipation 25 Energy Generation 10 Energy Capacity 125 Matter Stores 300 Matter Capacity 300 Sight Range 16 Terrain Scan Density 10 Additional Mass Support 6 Resistance: KI 35 Resistance: TH 35 Resistance: EX 35 Resistance: EM 35 Resistance: I 35 Resistance: S 35 Resistance: P 35 Evasion (%) 50 Targeting Accuracy 5 Offensive Hacking 20 Item Schematics ----------------- None Robot Schematics ------------------ None Fabricated ------------ Nothing Repaired ---------- Nothing Studied --------- None Alien Tech Used ----------------- None Achievements -------------- None Challenges ------------ None Game ------ Seed WeldingCentriumDirector Manual? 0 Play Time 00:11:12 Cumulative 175.4 hours Start 2025.12.08 @ 10:34:45 End 2025.12.08 @ 10:40:59 Sessions 1 Manual Loads 0 Difficulty Explorer Special Mode None Game No. 242 Rogue 0 Adventurer 0 Explorer 242 Win Type - Total 0 Types 0/0/0/0/0/0/0/0/0/0 Lore% 70 Gallery% 67 Achievement% 53 Wizard Run 0 Options --------- Layout 1 ASCII 0 Keyboard 0 Movement Mouse Keybinds 0 Fullscreen 1 Font 24/Smallcaps Map View 50x35 Zoom Use 0% Tactical HUD 1 Map Filters NONE Filters NONE Steam 1 RUN: 7c884377-e0c6-4758-abc7-4a1582264af5